bitfinex/quotes_BTCUSD_20251114
["timestamp","ask_amount","ask_price","bid_price","bid_amount"]
[1763095125245,0.00013762,97339.0,97330.0,0.00897102]
[1763095125445,2.0,97338.0,97330.0,0.00897102]
[1763095125852,0.00013762,97339.0,97330.0,0.00897102]
[1763095126056,0.00013762,97339.0,97331.0,0.09104]
[1763095126272,2.0,97401.0,97370.0,0.00897102]
[1763095126471,2.0,97379.0,97350.0,0.00897102]
[1763095126658,2.0,97394.0,97360.0,0.00897102]
[1763095126864,2.0,97397.0,97380.0,0.00897102]
[1763095127021,0.50854076,97390.0,97360.0,0.00897102]
[1763095127233,2.02085508,97389.0,97360.0,0.00897102]
[1763095127431,2.0,97387.0,97370.0,0.00794234]
[1763095127635,2.0,97396.0,97390.0,0.00794234]
[1763095127997,0.03567775,97411.0,97390.0,0.00794234]
[1763095127998,2.0,97400.0,97390.0,0.00794234]
[1763095128524,0.02607253,97438.0,97390.0,0.00794234]
[1763095128721,0.52089471,97443.0,97390.0,0.00794234]
[1763095128944,0.02089471,97442.0,97390.0,0.00794234]
[1763095129197,0.02607253,97448.0,97390.0,0.00794234]
[1763095129198,0.02607253,97447.0,97390.0,0.00794234]
[1763095129369,0.02089471,97447.0,97391.0,0.09104]
[1763095129568,2.0,97447.0,97440.0,0.00794234]
[1763095129769,2.0,97446.0,97440.0,0.00794234]
[1763095130348,0.00013757,97447.0,97440.0,0.00794234]
[1763095131181,0.00013757,97447.0,97441.0,0.09104]
[1763095131400,0.00013757,97447.0,97430.0,0.50854076]
[1763095131606,0.00859431,97481.0,97427.0,0.20528031]
[1763095131828,0.00859431,97481.0,97433.0,0.04341874]
[1763095131829,2.0,97480.0,97433.0,0.04341874]
[1763095132031,2.0,97480.0,97421.0,0.04341874]
[1763095132234,2.0,97480.0,97420.0,0.02982708]
[1763095132235,2.0,97480.0,97440.0,0.50854076]
[1763095132591,2.0,97480.0,97433.0,0.04341874]
[1763095132798,0.0090527,97481.0,97430.0,0.0256074]
[1763095132999,0.0090527,97481.0,97440.0,0.50854076]
[1763095133482,2.0,97480.0,97421.0,0.04341874]
[1763095133635,0.323,97476.0,97410.0,0.50854076]
[1763095133836,0.09003,97480.0,97400.0,0.01740063]
[1763095133837,2.0,97480.0,97430.0,0.50854076]
[1763095134046,0.323,97477.0,97390.0,0.00999999]
[1763095134251,2.0,97478.0,97420.0,0.50854076]
[1763095134407,2.0,97478.0,97380.0,0.01026904]
[1763095134408,0.323,97477.0,97410.0,0.50854076]
[1763095134626,2.0,97480.0,97430.0,0.50854076]
[1763095135230,2.0,97480.0,97420.0,0.50854076]
[1763095135436,2.0,97480.0,97440.0,0.50854076]
[1763095135818,0.0090527,97481.0,97440.0,0.50854076]
[1763095135957,0.0090527,97481.0,97460.0,0.50854076]
[1763095136518,1.11921318,97500.0,97450.0,0.01026167]
[1763095136722,1.11935067,97500.0,97457.0,0.04341874]
[1763095136920,2.0,97499.0,97460.0,0.50854076]
[1763095137137,2.0,97499.0,97420.0,0.02026482]
[1763095137138,2.0,97499.0,97450.0,0.50854076]
[1763095137481,2.0,97497.0,97420.0,0.01680881]
[1763095137665,1.11935067,97500.0,97410.0,0.02026587]
[1763095137666,2.0,97495.0,97430.0,0.02026376]
[1763095137865,2.0,97499.0,97450.0,0.50854076]
[1763095138150,2.0,97499.0,97451.0,0.04341874]
[1763095138332,2.0,97499.0,97450.0,0.00999999]
[1763095138538,2.0,97499.0,97440.0,0.50854076]
[1763095139090,0.323,97496.0,97420.0,0.0175892]
[1763095139371,0.323,97494.0,97430.0,0.50854076]
[1763095139579,0.50854076,97490.0,97400.0,0.00999999]
[1763095139740,0.323,97477.0,97410.0,0.50854076]
[1763095139940,0.323,97469.0,97400.0,0.50854076]
[1763095140145,0.323,97469.0,97390.0,0.01994459]
[1763095140146,2.0,97468.0,97410.0,0.50854076]
[1763095140372,1.12921318,97500.0,97430.0,0.50854076]
[1763095140373,2.0,97475.0,97430.0,0.50854076]
[1763095140557,2.0,97493.0,97420.0,0.00999999]
[1763095140723,0.09217,97494.0,97400.0,0.00999999]
[1763095140724,2.0,97488.0,97400.0,0.00999999]
[1763095140923,0.323,97469.0,97370.0,0.03027008]
[1763095141123,2.0,97468.0,97420.0,0.50854076]
[1763095141325,2.0,97498.0,97430.0,0.01026377]
[1763095141524,0.5,97499.0,97430.0,0.01026377]
[1763095141525,2.0,97499.0,97450.0,0.50854076]
[1763095141729,1.11921318,97500.0,97470.0,0.50854076]
[1763095141991,1.11921318,97500.0,97471.0,0.323]
[1763095142193,1.11921318,97500.0,97490.0,0.50854076]
[1763095142394,0.00999999,97580.0,97491.0,0.323]
[1763095142626,0.5,97593.0,97510.0,0.50854076]
[1763095142797,0.0002,97600.0,97524.0,0.50854076]
[1763095143034,2.0,97599.0,97530.0,0.50854076]
[1763095143170,2.0,97599.0,97520.0,0.02]
[1763095143377,2.0,97599.0,97513.0,0.20509885]
[1763095143585,2.0,97599.0,97510.0,0.0394982]
[1763095143586,2.0,97599.0,97530.0,0.50854076]
[1763095143818,2.0,97599.0,97520.0,0.02]
[1763095144237,2.0,97599.0,97550.0,0.50854076]
[1763095144500,2.0,97599.0,97547.0,0.2050281]
[1763095144714,0.00065822,97600.0,97589.0,0.50854076]
[1763095145111,0.07624,97659.0,97580.0,0.030248]
[1763095145314,0.50854076,97650.0,97550.0,0.01025115]
[1763095145514,2.0,97639.0,97555.0,0.323]
[1763095145734,2.0,97639.0,97520.0,0.01775718]
[1763095145919,0.01,97650.0,97540.0,0.50854076]
[1763095145920,2.0,97609.0,97540.0,0.50854076]
[1763095146128,0.323,97606.0,97540.0,0.50854076]
[1763095146329,2.0,97609.0,97580.0,0.50854076]
[1763095146558,0.07616,97628.0,97560.0,0.50854076]
[1763095146698,0.323,97606.0,97540.0,0.50854076]
[1763095147062,2.0,97603.0,97540.0,0.02]
[1763095147207,0.323,97604.0,97540.0,0.50854076]
[1763095147410,2.323,97599.0,97550.0,0.02]
[1763095147608,2.0,97598.0,97520.0,0.50854076]
[1763095147966,0.323,97604.0,97520.0,0.01997381]
[1763095148278,0.323,97559.0,97480.0,0.50854076]
[1763095148491,0.50854076,97520.0,97422.0,0.01013459]
[1763095148698,2.0,97516.0,97450.0,0.50854076]
[1763095148906,2.0,97518.0,97440.0,0.01026272]
[1763095149121,0.0762,97532.0,97490.0,0.50854076]
[1763095149327,2.0,97553.0,97480.0,0.01997381]
[1763095149590,2.0,97553.0,97500.0,0.50854076]
[1763095149765,0.41611,97552.0,97490.0,0.00045822]
[1763095149974,2.0,97528.0,97490.0,0.00045822]
[1763095150195,0.00999999,97550.0,97490.0,0.00045822]
[1763095150196,2.0,97526.0,97490.0,0.00045822]
[1763095150397,0.323,97552.0,97490.0,0.00045822]
[1763095150602,2.0,97549.0,97490.0,0.00045822]
[1763095151026,2.0,97551.0,97490.0,0.50899898]
[1763095151242,2.0,97553.0,97491.0,0.04341874]
[1763095151439,2.0,97553.0,97490.0,0.50899898]
[1763095151639,2.0,97553.0,97500.0,0.50854076]
[1763095151865,2.323,97553.0,97552.0,0.00873701]
[1763095152072,2.3438089,97553.0,97552.0,0.00873701]
[1763095152275,0.323,97548.0,97460.0,0.50854076]
[1763095152476,0.323,97519.0,97430.0,0.01997381]
[1763095152680,0.323,97517.0,97450.0,0.50854076]
[1763095152888,2.0,97517.0,97450.0,0.50854076]
[1763095153097,0.50854076,97490.0,97450.0,0.00045822]
[1763095153303,0.50854076,97510.0,97450.0,0.00045822]
[1763095153492,2.0,97506.0,97450.0,0.00045822]
[1763095153696,0.50854076,97460.0,97380.0,0.51847205]
[1763095153901,0.323,97448.0,97400.0,0.00045839]
[1763095154086,2.0,97446.0,97400.0,0.00045839]
[1763095154300,2.0,97446.0,97400.0,0.50899915]
[1763095154496,2.0,97469.0,97400.0,0.50899915]
[1763095154699,0.323,97466.0,97400.0,0.00045839]
[1763095154904,2.0,97474.0,97420.0,0.50854076]
[1763095155109,0.07604,97475.0,97420.0,0.50854076]
[1763095155110,0.07604,97475.0,97420.0,0.01026483]
[1763095155311,2.0,97474.0,97411.0,0.323]
[1763095155525,0.1006426,97436.0,97400.0,0.52897296]
[1763095155731,0.1006426,97436.0,97400.0,0.00045839]
[1763095155928,0.1006426,97451.0,97410.0,0.50854076]
[1763095156180,2.0,97465.0,97420.0,0.50854076]
[1763095156377,0.1006426,97466.0,97410.0,0.01997381]
[1763095156596,2.0,97465.0,97410.0,0.01997381]
[1763095156740,0.1006426,97443.0,97400.0,0.00045839]
[1763095156945,0.1006426,97428.0,97400.0,0.00045839]
[1763095157414,0.1006426,97413.0,97400.0,0.00045839]
[1763095157620,0.1006426,97413.0,97340.0,0.02039998]
[1763095157621,0.00056934,97388.0,97350.0,0.50854076]
[1763095157915,0.1006426,97386.0,97358.0,0.00013741]
[1763095158136,0.0210379,97385.0,97358.0,0.00013741]
[1763095158335,0.1006426,97362.0,97358.0,0.00013741]
[1763095158759,2.0,97360.0,97358.0,0.00013741]
[1763095158964,0.02103046,97359.0,97358.0,0.00013741]
[1763095159187,2.02103046,97359.0,97358.0,0.00013741]
[1763095159379,0.323,97356.0,97340.0,0.0004]
[1763095159580,2.1006426,97341.0,97340.0,0.00085859]
[1763095159786,2.1006426,97341.0,97270.0,9e-05]
[1763095159787,0.323,97340.0,97270.0,9e-05]
[1763095159988,2.0,97319.0,97270.0,9e-05]
[1763095160189,2.0,97317.0,97270.0,9e-05]
[1763095160803,0.0758,97318.0,97270.0,9e-05]
[1763095160804,0.0758,97318.0,97270.0,0.50863076]
[1763095161029,2.0,97317.0,97270.0,9e-05]
[1763095161230,0.1006426,97313.0,97270.0,9e-05]
[1763095161639,0.1006426,97298.0,97270.0,9e-05]
[1763095162048,2.0,97279.0,97270.0,9e-05]
[1763095162212,0.323,97276.0,97270.0,0.08559]
[1763095162426,0.07584,97278.0,97183.0,0.1006426]
[1763095162427,0.323,97272.0,97183.0,0.1006426]
[1763095162640,2.0,97239.0,97170.0,0.0104]
[1763095162896,0.323,97229.0,97170.0,0.0004]
[1763095163074,0.323,97219.0,97170.0,0.0004]
[1763095163274,0.21614,97238.0,97170.0,0.0004]
[1763095163275,0.1006426,97173.0,97170.0,0.0004]
[1763095163486,0.07584,97190.0,97170.0,0.0004]
[1763095163864,2.0,97189.0,97170.0,0.0004]
[1763095164262,0.1006426,97171.0,97170.0,0.0004]
[1763095164463,0.10109837,97171.0,97170.0,0.0004]
[1763095164763,2.10109837,97171.0,97170.0,0.0004]
[1763095165006,2.50854076,97170.0,97090.0,0.50854076]
[1763095165207,0.50854076,97150.0,97080.0,0.50854076]
[1763095165383,0.50854076,97150.0,97070.0,0.01030184]
[1763095165384,2.0,97148.0,97070.0,0.01030184]
[1763095165587,2.0,97148.0,97070.0,0.5188426]
[1763095165792,2.0,97146.0,97072.0,0.20603059]
[1763095165983,2.0,97146.0,97080.0,0.01030078]
[1763095166310,2.0,97146.0,97145.0,0.0087691]
[1763095166513,0.00999999,97130.0,97030.0,0.51884685]
[1763095166715,0.00999999,97130.0,97020.0,0.01030715]
[1763095166716,0.50854076,97090.0,97020.0,0.50854076]
[1763095166946,2.0,97079.0,97010.0,0.01030821]
[1763095167147,0.04341874,97077.0,97010.0,0.03028202]
[1763095167279,6e-05,97077.0,97048.0,0.20608205]
[1763095167478,0.07586,97077.0,97040.0,0.01030502]
[1763095167685,0.07631493,97077.0,97020.0,0.48969053]
[1763095168126,2.0,97075.0,97002.0,0.001]
[1763095168554,0.07631493,97077.0,97002.0,0.001]
[1763095168555,2.0,97073.0,97010.0,0.46971778]
[1763095168770,2.0,97071.0,97030.0,0.21642583]
[1763095168992,2.0,97071.0,97030.0,0.01030609]
[1763095169227,0.1006426,97048.0,97032.0,0.20611665]
[1763095169512,0.1006426,97063.0,97030.0,0.46971566]
[1763095169803,2.0,97047.0,97007.0,0.00013]
[1763095170018,2.0,97045.0,97007.0,0.00013]
[1763095170240,2.0,97044.0,97007.0,0.00013]
[1763095170465,2.0,97043.0,97007.0,0.00013]
[1763095170714,0.04341874,97041.0,97000.0,31.565795]
[1763095170927,0.1006426,97001.0,97000.0,29.37225071]
[1763095171161,6e-05,97001.0,97000.0,29.37225071]
[1763095171703,0.5,97101.0,97020.0,0.01030715]
[1763095171906,2.0,97101.0,97050.0,0.46971353]
[1763095172103,2.0,97101.0,97030.0,0.01]
[1763095172104,0.1006426,97100.0,97060.0,0.45940957]
[1763095172309,2.0,97099.0,97060.0,0.0103029]
[1763095172527,0.1006426,97098.0,97050.0,0.46971353]
[1763095172727,2.0,97097.0,97050.0,0.46971353]
[1763095172931,0.00045521,97101.0,97050.0,0.46971353]
[1763095172932,0.00045521,97101.0,97087.0,0.45940957]
[1763095173139,2.0,97152.0,97110.0,0.0102976]
[1763095173344,0.07588,97174.0,97121.0,0.20592868]
[1763095173546,2.0,97177.0,97120.0,0.46970611]
[1763095173747,0.00173952,97194.0,97140.0,0.45940957]
[1763095173973,2.0,97193.0,97147.0,0.1006426]
[1763095174309,0.00173952,97194.0,97080.0,0.01030078]
[1763095174310,2.0,97181.0,97080.0,0.01030078]
[1763095174625,2.0,97169.0,97080.0,0.01030078]
[1763095174834,2.0,97165.0,97090.0,0.46970929]
[1763095174970,2.0,97163.0,97100.0,0.01029866]
[1763095175165,0.1006426,97122.0,97080.0,0.00045521]
[1763095175348,0.1006426,97122.0,97091.0,0.1006426]
[1763095175547,0.1006426,97136.0,97091.0,0.1006426]
[1763095175797,2.0,97134.0,97091.0,0.1006426]
[1763095176045,0.1006426,97120.0,97091.0,0.1006426]
[1763095176253,0.1006426,97120.0,97080.0,0.00045521]
[1763095176254,2.0,97119.0,97080.0,0.00045521]
[1763095176457,2.0,97117.0,97080.0,0.00045521]
[1763095176656,0.1006426,97116.0,97082.0,0.1006426]
[1763095176886,2.0,97115.0,97080.0,0.00045521]
[1763095177115,0.36641874,97107.0,97080.0,0.00045521]
[1763095177338,2.0,97080.0,97022.0,0.1006426]
[1763095177534,0.00103143,97021.0,97001.0,0.1006426]
[1763095177875,0.00103143,97021.0,97020.0,0.00334022]
[1763095178702,0.00148608,97021.0,97020.0,0.00334022]
[1763095179311,0.5,97115.0,97060.0,0.0103029]
[1763095179511,0.0758,97124.0,97070.0,0.01030184]
[1763095179724,0.0758,97124.0,97072.0,0.20603263]
[1763095179988,0.1006426,97098.0,97060.0,0.00013749]
[1763095180207,0.1006426,97114.0,97080.0,0.01030078]
[1763095180370,2.0,97162.0,97110.0,0.0102976]
[1763095180580,2.0,97172.0,97111.0,0.36641874]
[1763095180749,0.0758,97173.0,97111.0,0.323]
[1763095180960,0.0758,97173.0,97120.0,0.01029654]
[1763095180961,2.0,97172.0,97120.0,0.01029654]
[1763095181143,2.0,97171.0,97090.0,0.01997381]
[1763095181344,0.1006426,97100.0,97060.0,0.03027671]
[1763095181543,0.1006426,97100.0,97065.0,0.1006426]
[1763095181821,0.1006426,97100.0,97060.0,0.00013749]
[1763095182023,2.0,97099.0,97060.0,0.00013749]
[1763095182234,0.1928326,97100.0,97060.0,0.00013749]
[1763095182235,2.0,97097.0,97060.0,0.00013749]
[1763095182454,0.323,97094.0,97060.0,0.00013749]
[1763095182664,2.1006426,97061.0,97060.0,0.00013749]
[1763095182873,2.0,97060.0,97000.0,29.37225071]
[1763095183072,0.323,97057.0,97002.0,0.00045465]
[1763095183242,2.0,97033.0,97002.0,0.00045465]
[1763095183463,0.1006426,97049.0,97002.0,0.00045465]
[1763095183663,2.0,97048.0,97002.0,0.00045465]
[1763095183869,2.0,97047.0,97002.0,0.00045465]
[1763095184072,0.323,97044.0,97002.0,0.00045465]
[1763095184235,0.323,97040.0,97002.0,0.00045465]
[1763095184441,2.0,97023.0,97002.0,0.00045465]
[1763095184659,2.0,97008.0,97000.0,29.17844071]
[1763095184899,2.0,97007.0,97000.0,29.17707071]
[1763095185123,2.0,97007.0,97000.0,28.00220083]
[1763095185336,0.00045445,97008.0,97000.0,27.83661483]
[1763095185337,0.323,97006.0,97000.0,27.83661483]
[1763095185487,0.87952,97001.0,97000.0,27.52680289]
[1763095185691,0.87952,97001.0,97000.0,22.91284257]
[1763095185692,0.42293874,97001.0,97000.0,22.91284257]
[1763095185917,0.49959258,97001.0,97000.0,20.48294918]
[1763095186115,0.45957839,97001.0,97000.0,15.95975638]
[1763095186315,0.46229421,97001.0,97000.0,13.90759883]
[1763095186496,0.48280605,97001.0,97000.0,11.69315677]
[1763095186865,0.50715211,97001.0,97000.0,5.03308769]
[1763095187016,0.57266384,96972.0,96950.0,0.005]
[1763095187214,0.57266384,96972.0,96929.0,0.0641997]
[1763095187215,0.04341874,96930.0,96929.0,0.0641997]
[1763095187461,2.0,96929.0,96903.0,0.20163303]
[1763095187637,2.0,96929.0,96764.0,0.01317654]
[1763095187638,0.09151734,96798.0,96764.0,0.01317654]
[1763095187970,0.5,96873.0,96764.0,0.01317654]
[1763095187971,0.00690404,96880.0,96788.0,0.45940957]
[1763095188180,0.00690404,96870.0,96823.0,0.04996]
[1763095188454,2.0,96867.0,96809.0,0.09898]
[1763095188639,0.00045362,96880.0,96809.0,0.09898]
[1763095188640,0.00045362,96880.0,96869.0,0.04996]
[1763095189057,0.00690404,96920.0,96890.0,0.01032098]
[1763095189272,2.0,96979.0,96890.0,0.00013757]
[1763095189473,0.45940957,96970.0,96891.0,0.09898]
[1763095189685,2.0,96966.0,96910.0,0.45940957]
[1763095189900,2.0,96976.0,96890.0,0.00013757]
[1763095190107,0.00690404,96960.0,96892.0,0.09898]
[1763095190314,0.04341874,96969.0,96892.0,0.09898]
[1763095190517,2.0,96968.0,96890.0,0.00013757]
[1763095190725,2.0,96968.0,96891.0,0.09898]
[1763095190928,0.00999999,96970.0,96890.0,0.00323352]
[1763095190929,0.00999999,96950.0,96890.0,0.00013757]
[1763095191132,0.20633872,96928.0,96890.0,0.00013757]
[1763095191370,0.04341874,96908.0,96890.0,0.00013757]
[1763095191576,0.05032278,96930.0,96890.0,0.00013757]
[1763095191577,0.0495,96937.0,96890.0,0.00013757]
[1763095191783,2.0,96948.0,96891.0,0.09898]
[1763095191991,0.0495,96987.0,96930.0,0.00309595]
[1763095192280,0.02064175,97006.0,96940.0,0.00309595]
[1763095192596,0.05364654,97037.0,96940.0,0.00309595]
[1763095192597,2.0,97048.0,96980.0,0.00309595]
[1763095192775,2.0,97048.0,97000.0,0.01030927]
[1763095192981,0.00174309,97049.0,97020.0,0.00309595]
[1763095193189,0.00219754,97049.0,97020.0,0.00309595]
[1763095193388,0.00219754,97049.0,97021.0,0.09898]
[1763095193629,2.0,97048.0,97020.0,0.00309595]
[1763095193829,2.0,97046.0,97002.0,0.09898]
[1763095194046,2.0,97044.0,96990.0,0.00309595]
[1763095194257,0.02565781,97035.0,96990.0,0.45940957]
[1763095194476,0.03421042,97044.0,96980.0,0.00309595]
[1763095194477,0.02565781,97054.0,97010.0,0.45940957]
[1763095194707,0.02565781,97054.0,97000.0,0.00309595]
[1763095194708,0.02565781,97045.0,97000.0,0.00309595]
[1763095194909,2.0,97045.0,96981.0,0.09898]
[1763095195186,0.323,97042.0,97000.0,0.46250552]
[1763095195387,2.0,97048.0,97010.0,0.00309595]
[1763095195543,2.0,97048.0,96960.0,0.03003311]
[1763095195544,2.0,97048.0,97000.0,0.00309595]
[1763095195748,2.0,97048.0,97010.0,0.46250552]
[1763095195979,0.00879383,97060.0,97040.0,0.00309595]
[1763095196186,0.00879383,97060.0,97041.0,0.04341874]
[1763095196385,2.0,97119.0,97080.0,0.00309595]
[1763095196727,2.0,97117.0,97052.0,0.09898]
[1763095196933,2.0,97138.0,97062.0,0.323]
[1763095197142,0.02707624,97137.0,97052.0,0.10925224]
[1763095197348,0.00999999,97100.0,97052.0,0.00013765]
[1763095197561,0.00999999,97060.0,97052.0,0.00013765]
[1763095197743,0.00999999,97030.0,96943.0,0.09898]
[1763095197929,0.323,97025.0,96943.0,0.09943445]
[1763095198159,2.02079074,97024.0,96991.0,0.00024075]
[1763095198336,2.0,97048.0,96991.0,0.09922075]
[1763095198494,2.0,97074.0,96991.0,0.42222075]
[1763095198701,2.0,97072.0,96991.0,0.09922075]
[1763095198919,0.323,97047.0,96991.0,0.00024075]
[1763095199125,2.0,97069.0,96993.0,0.20620044]
[1763095199496,0.45940957,97070.0,97007.0,0.323]
[1763095199697,0.0495,97079.0,96993.0,0.00045445]
[1763095199698,0.323,97057.0,96994.0,0.09898]
[1763095199913,0.323,97055.0,96994.0,0.09898]
[1763095200118,0.323,97039.0,96993.0,0.00045445]
[1763095200342,2.0,97037.0,96993.0,0.00045445]
[1763095200543,0.5,97075.0,97000.0,0.01030927]
[1763095200752,2.0,97089.0,97020.0,0.01030715]
[1763095200970,2.0,97099.0,97031.0,0.323]
[1763095201200,2.0,97099.0,97030.0,0.01030609]
[1763095201201,0.02595367,97142.0,97098.0,0.04666]
[1763095201404,0.5,97179.0,97099.0,0.09386]
[1763095201610,0.02595367,97194.0,97109.0,0.323]
[1763095201818,0.0346049,97200.0,97119.0,0.20593277]
[1763095201819,0.0207675,97199.0,97119.0,0.20593277]
[1763095202040,0.0207675,97204.0,97140.0,0.01029442]
[1763095202284,2.0,97189.0,97119.0,0.00013762]
[1763095202514,2.0,97202.0,97119.0,0.00013762]
[1763095202757,2.0,97179.0,97120.0,0.09386]
[1763095202960,2.0,97189.0,97120.0,0.09386]
[1763095203170,0.02075184,97188.0,97120.0,0.09386]
[1763095203381,0.45940957,97170.0,97119.0,0.00013762]
[1763095203587,2.0,97169.0,97119.0,0.00013762]
[1763095204024,0.02595367,97181.0,97120.0,0.09386]
[1763095204239,0.02595367,97212.0,97130.0,0.01029548]
[1763095204441,0.0002,97220.0,97186.0,0.04666]
[1763095204647,0.0002,97220.0,97190.0,0.01028912]
[1763095204853,0.0002,97220.0,97191.0,0.09386]
[1763095205072,2.0,97219.0,97178.0,0.04341874]
[1763095205310,0.005,97181.0,97179.0,0.09386]
[1763095205508,0.0002,97220.0,97179.0,0.09386]
[1763095205724,0.00045546,97181.0,97179.0,0.09386]
[1763095205939,0.00045546,97181.0,97168.0,0.04341874]
[1763095206146,0.00045546,97181.0,97152.0,0.09386]
[1763095206622,0.0002,97220.0,97152.0,0.09386]
[1763095206835,0.0002,97220.0,97191.0,0.04341874]
[1763095207045,0.45949957,97270.0,97200.0,0.01028806]
[1763095207259,9e-05,97270.0,97211.0,0.04341874]
[1763095207496,9e-05,97270.0,97230.0,0.01028489]
[1763095207714,9e-05,97270.0,97201.0,0.09023]
[1763095207715,2.0,97269.0,97212.0,0.09023]
[1763095208187,0.0002,97280.0,97240.0,0.45940957]
[1763095208388,0.48536324,97350.0,97271.0,0.04341874]
[1763095208601,2.0,97368.0,97291.0,0.1]
[1763095208810,2.0,97379.0,97304.0,0.04341874]
[1763095209020,2.0,97383.0,97311.0,0.04341874]
[1763095209236,0.00536784,97378.0,97319.0,0.04341874]
[1763095209457,0.00536784,97378.0,97329.0,0.1]
[1763095209664,0.00045659,97378.0,97334.0,0.04341874]
[1763095209889,0.00045659,97378.0,97337.0,0.1]
[1763095210106,0.00045659,97378.0,97326.0,0.1]
[1763095210330,2.0,97377.0,97305.0,0.09023]
[1763095210617,0.09701659,97378.0,97320.0,0.01027538]
[1763095210618,0.00045659,97378.0,97320.0,0.01027538]
[1763095210821,0.00045659,97378.0,97341.0,0.04341874]
[1763095211044,0.00045659,97378.0,97320.0,0.02040997]
[1763095211045,0.00045659,97378.0,97346.0,0.1]
[1763095211252,2.0,97377.0,97321.0,0.13623]
[1763095211495,2.0,97369.0,97307.0,0.08213]
[1763095211696,0.323,97369.0,97308.0,0.1]
[1763095211912,0.09656,97376.0,97309.0,0.04341874]
[1763095212136,0.09656,97376.0,97299.0,0.20555038]
[1763095212137,0.09656,97376.0,97312.0,0.1]
[1763095212342,0.001,97377.0,97321.0,0.04341874]
[1763095212553,0.001,97377.0,97325.0,0.04341874]
[1763095212766,0.45940957,97360.0,97289.0,0.03856]
[1763095212978,0.0073817,97326.0,97290.0,0.11027854]
[1763095213196,0.323,97367.0,97290.0,0.1]
[1763095213413,0.00536879,97359.0,97290.0,0.11027854]
[1763095213636,0.09656,97392.0,97301.0,0.1]
[1763095213883,0.20526807,97434.0,97300.0,0.01027749]
[1763095213884,0.09656,97425.0,97330.0,0.01027432]
[1763095214083,0.003,97360.0,97333.0,0.1]
[1763095214299,0.00536736,97391.0,97340.0,0.01027326]
[1763095214592,2.0,97401.0,97351.0,0.04341874]
[1763095214830,9e-05,97402.0,97390.0,0.046]
[1763095215059,9e-05,97402.0,97363.0,0.09023]
[1763095215282,9e-05,97402.0,97364.0,0.04341874]
[1763095215283,0.00054687,97402.0,97364.0,0.04341874]
[1763095215515,0.00054687,97402.0,97359.0,0.046]
[1763095215516,0.00054687,97402.0,97366.0,0.04341874]
[1763095215726,0.00054687,97402.0,97368.0,0.09023]
[1763095216995,0.00154687,97402.0,97370.0,0.03024391]
[1763095217196,0.70953223,97460.0,97370.0,0.04725694]
[1763095217416,0.70953223,97460.0,97371.0,0.09023]
[1763095217417,2.0,97439.0,97371.0,0.09023]
[1763095217626,0.323,97418.0,97359.0,0.046]
[1763095217839,0.323,97414.0,97360.0,0.09023]
[1763095218054,0.002,97402.0,97360.0,0.09023]
[1763095218237,0.002,97402.0,97361.0,0.04341874]
[1763095218735,0.00833799,97362.0,97361.0,0.04341874]
[1763095218969,0.002,97402.0,97370.0,0.0102701]
[1763095219177,0.70953223,97460.0,97401.0,0.04341874]
[1763095219392,2.0,97471.0,97381.0,0.04341874]
[1763095219599,0.003,97439.0,97391.0,0.15111874]
[1763095219804,2.0,97469.0,97401.0,0.04341874]
[1763095220023,10.0,97500.0,97401.0,0.04341874]
[1763095220024,0.00013704,97439.0,97410.0,0.20531567]
[1763095220239,0.00013704,97439.0,97426.0,0.04341874]
[1763095220437,2.0,97489.0,97439.0,0.04341874]
[1763095220702,2.0,97488.0,97438.0,0.01769]
[1763095220906,2.0,97488.0,97412.0,0.04341874]
[1763095220907,0.002,97439.0,97412.0,0.04341874]
[1763095221117,2.41956,97487.0,97411.0,0.01755]
[1763095221325,2.0,97486.0,97433.0,0.04341874]
[1763095221538,2.0,97499.0,97441.0,0.04341874]
[1763095221997,10.0,97500.0,97443.0,0.04341874]
[1763095222240,0.00013734,97499.0,97453.0,0.20522588]
[1763095222463,0.00013734,97499.0,97450.0,0.04341874]
[1763095222689,0.00013734,97499.0,97451.0,0.09023]
[1763095222895,0.00013734,97499.0,97452.0,0.04341874]
[1763095223108,0.00013734,97499.0,97451.0,0.09023]
[1763095223480,0.00013734,97499.0,97452.0,0.04341874]
[1763095223626,0.00313734,97499.0,97454.0,0.04341874]
[1763095223824,0.00313734,97499.0,97453.0,0.09023]
[1763095224040,2.0,97498.0,97453.0,0.09023]
[1763095224239,0.70953223,97490.0,97427.0,0.09023]
[1763095224481,0.323,97497.0,97427.0,0.09023]
[1763095224482,2.0,97488.0,97427.0,0.09023]
[1763095224687,2.0,97494.0,97430.0,0.01026377]
[1763095224883,0.00013734,97499.0,97438.0,0.04341874]
[1763095225085,2.0,97498.0,97431.0,0.41323]
[1763095225632,0.00213734,97499.0,97451.0,0.04341874]
[1763095225809,0.00013734,97499.0,97436.0,0.01013459]
[1763095226069,1.99987,97498.0,97433.0,0.09023]
[1763095226201,1.99987,97498.0,97434.0,0.09023]
[1763095226408,1.99987,97498.0,97441.0,0.04341874]
[1763095226605,1.99987,97497.0,97442.0,0.09023]
[1763095226817,1.99987,97497.0,97443.0,0.04341874]
[1763095227026,0.00013734,97499.0,97443.0,0.04341874]
[1763095227226,0.00013734,97499.0,97430.0,0.82549862]
[1763095227227,0.003,97498.0,97444.0,0.09023]
[1763095227424,0.003,97498.0,97446.0,0.20524187]
[1763095227624,0.003,97498.0,97450.0,0.04341874]
[1763095227830,0.003,97498.0,97445.0,0.09023]
[1763095228028,0.003,97498.0,97446.0,0.04341874]
[1763095228232,0.003,97498.0,97450.0,0.21549509]
[1763095228411,0.00013734,97499.0,97447.0,0.09023]
[1763095228611,2.50013734,97499.0,97447.0,0.09023]
[1763095228840,0.00013734,97499.0,97450.0,0.21549301]
[1763095229043,0.00013734,97499.0,97460.0,0.01026061]
[1763095229241,0.003,97498.0,97460.0,0.03858961]
[1763095229480,0.003,97498.0,97479.0,0.04341874]
[1763095229634,10.0,97500.0,97472.0,0.04341874]
[1763095229635,9.85637,97500.0,97472.0,0.04341874]